bitfinex/quotes_BTCUSD_20240905
["timestamp","ask_amount","ask_price","bid_price","bid_amount"]
[1725549352845,0.176533,56647.0,56643.0,0.176542]
[1725549353013,0.353049,56650.0,56644.0,0.176539]
[1725549353243,0.176532,56647.0,56643.0,0.176542]
[1725549354019,0.176528,56649.0,56645.0,0.176537]
[1725549354447,0.000816,56652.0,56637.0,0.1909]
[1725549354654,0.000816,56652.0,56649.0,0.176524]
[1725549354884,0.000816,56652.0,56651.0,0.176519]
[1725549355105,0.000816,56652.0,56648.0,0.353054]
[1725549355106,0.177333,56652.0,56648.0,0.176527]
[1725549355314,0.000816,56652.0,56649.0,0.353049]
[1725549355517,0.000816,56652.0,56651.0,0.529557]
[1725549355886,0.000816,56652.0,56651.0,0.176519]
[1725549356088,0.000816,56652.0,56651.0,0.529557]
[1725549356786,0.000816,56652.0,56651.0,0.882595]
[1725549356992,0.000816,56652.0,56651.0,1.066195]
[1725549357202,0.000816,56652.0,56651.0,1.419233]
[1725549358260,0.000816,56652.0,56651.0,1.066195]
[1725549358737,0.000816,56652.0,56651.0,0.529557]
[1725549360001,0.000816,56652.0,56651.0,0.176519]
[1725549360435,0.000816,56652.0,56651.0,0.882595]
[1725549360857,0.000816,56652.0,56651.0,0.877595]
[1725549361279,0.000816,56652.0,56649.0,0.176524]
[1725549361501,0.000816,56652.0,56644.0,0.353076]
[1725549361711,0.000816,56652.0,56637.0,0.1]
[1725549361712,0.23235274,56650.0,56645.0,0.00353043]
[1725549361934,0.23235274,56650.0,56642.0,0.52650515]
[1725549361935,0.000816,56652.0,56651.0,0.176519]
[1725549362171,0.000816,56652.0,56651.0,0.882595]
[1725549362410,0.000816,56652.0,56651.0,1.731433]
[1725549362644,0.000816,56652.0,56651.0,1.729433]
[1725549363113,0.000816,56652.0,56651.0,2.092471]
[1725549363335,0.000816,56652.0,56651.0,2.115471]
[1725549363547,0.000816,56652.0,56651.0,1.829433]
[1725549365108,0.000816,56652.0,56651.0,2.192471]
[1725549365390,0.39472895,56664.0,56663.0,1.245374]
[1725549365646,0.00082,56685.0,56673.0,1.359352]
[1725549365869,0.00082,56685.0,56673.0,2.5980177]
[1725549366114,0.00082,56685.0,56673.0,2.65169593]
[1725549366329,0.00082,56685.0,56673.0,2.63511735]
[1725549366763,0.00082,56685.0,56673.0,2.65511735]
[1725549367188,0.00082,56685.0,56673.0,2.44760639]
[1725549367406,0.00082,56685.0,56673.0,1.812253]
[1725549367622,0.00082,56685.0,56673.0,2.00976396]
[1725549367836,0.00082,56685.0,56673.0,1.802253]
[1725549368492,0.00082,56685.0,56673.0,2.165154]
[1725549368707,0.00082,56685.0,56673.0,1.812253]
[1725549369586,0.00082,56685.0,56673.0,2.167154]
[1725549369802,0.00082,56685.0,56673.0,2.63011735]
[1725549370014,0.00082,56685.0,56673.0,2.65511735]
[1725549370505,0.2891,56704.0,56681.0,0.01]
[1725549370743,0.10082,56706.0,56680.0,0.002]
[1725549370744,0.52650515,56703.0,56702.0,0.352721]
[1725549370952,0.00082,56706.0,56687.0,0.2834]
[1725549370953,0.00082,56706.0,56687.0,0.2734]
[1725549371178,0.00082,56706.0,56685.0,0.1832]
[1725549371179,0.352746,56698.0,56685.0,0.1832]
[1725549371402,0.176396,56691.0,56685.0,0.17641]
[1725549371609,0.2783,56698.0,56683.0,0.176419]
[1725549371610,0.352766,56695.0,56683.0,0.176419]
[1725549371836,0.352805,56689.0,56680.0,0.352857]
[1725549372058,0.26945239,56693.0,56678.0,0.35287]
[1725549372272,0.26945239,56693.0,56679.0,0.352859]
[1725549372273,0.352803,56689.0,56679.0,0.352859]
[1725549372496,0.176402,56689.0,56684.0,0.176413]
[1725549372712,0.352791,56691.0,56684.0,0.176413]
[1725549372713,0.176404,56688.0,56684.0,0.176413]
[1725549372932,0.352792,56691.0,56674.0,0.1902]
[1725549373174,0.352864,56680.0,56672.0,0.352903]
[1725549373404,0.35284,56683.0,56674.0,0.176445]
[1725549373625,0.3017,56685.0,56668.0,0.1956]
[1725549373626,0.352871,56678.0,56668.0,0.1956]
[1725549373851,0.352871,56678.0,56664.0,0.2798]
[1725549373852,0.176447,56675.0,56667.0,0.352933]
[1725549374062,0.1847,56679.0,56674.0,0.176447]
[1725549374294,0.1847,56679.0,56671.0,0.352913]
[1725549374520,0.1847,56679.0,56676.0,0.176441]
[1725549374737,0.352833,56684.0,56664.0,0.2798]
[1725549374738,0.176423,56682.0,56664.0,0.2798]
[1725549374952,0.1847,56684.0,56665.0,0.11352855]
[1725549375177,0.1847,56684.0,56676.0,0.17644]
[1725549375389,0.1847,56684.0,56672.0,0.352901]
[1725549375390,0.176423,56682.0,56674.0,0.352889]
[1725549375641,0.1847,56684.0,56665.0,0.1]
[1725549375642,0.176422,56683.0,56678.0,0.176434]
[1725549375875,0.1847,56684.0,56664.0,0.7558]
[1725549375876,0.45415239,56684.0,56664.0,0.7558]
[1725549376097,0.3025,56670.0,56667.0,0.176469]
[1725549376309,0.478946,56675.0,56664.0,0.476]
[1725549376538,0.176455,56672.0,56666.0,0.352942]
[1725549376746,0.176455,56672.0,56664.0,0.476]
[1725549376747,0.352896,56674.0,56664.0,0.476]
[1725549377009,0.176449,56674.0,56665.0,0.35295]
[1725549377232,0.176454,56672.0,56668.0,0.176465]
[1725549377454,0.3025,56675.0,56664.0,0.476]
[1725549377672,0.1947,56672.0,56654.0,0.1]
[1725549377900,0.176482,56663.0,56651.0,0.353037]
[1725549378118,0.176469,56667.0,56652.0,0.00352989]
[1725549378340,0.176481,56664.0,56657.0,0.352999]
[1725549378552,0.176481,56664.0,56660.0,0.17649]
[1725549378760,0.632274,56662.0,56650.0,0.353044]
[1725549378970,0.176504,56656.0,56652.0,0.176514]
[1725549379188,0.2793,56662.0,56649.0,0.001628]
[1725549379394,0.2793,56662.0,56660.0,0.176489]
[1725549379642,0.455786,56662.0,56649.0,0.001628]
[1725549379858,0.2793,56662.0,56649.0,0.001628]
[1725549380058,0.1956,56657.0,56649.0,0.354676]
[1725549380300,0.4749,56662.0,56657.0,0.352999]
[1725549380540,0.4749,56662.0,56649.0,0.001628]
[1725549380541,0.176495,56659.0,56652.0,0.353027]
[1725549380794,1.004359,56662.0,56653.0,0.353021]
[1725549380981,0.176488,56661.0,56657.0,0.176499]
[1725549381408,0.352936,56668.0,56662.0,0.176483]
[1725549381409,0.2998,56667.0,56662.0,0.176483]
[1725549381635,0.2998,56667.0,56655.0,0.353008]
[1725549381636,0.176476,56665.0,56661.0,0.176488]
[1725549381844,0.176479,56664.0,56660.0,0.17649]
[1725549382066,0.176479,56664.0,56659.0,0.352986]
[1725549382067,0.176474,56666.0,56663.0,0.176481]
[1725549382315,0.2998,56667.0,56664.0,0.176476]
[1725549382532,0.000814,56673.0,56663.0,0.352961]
[1725549382533,0.290514,56673.0,56663.0,0.352961]
[1725549382766,0.290514,56673.0,56670.0,0.176458]
[1725549382966,0.290514,56673.0,56671.0,0.176456]
[1725549383193,0.290514,56673.0,56668.0,0.352928]
[1725549383194,0.000814,56673.0,56672.0,0.52936]
[1725549383430,0.000814,56673.0,56672.0,1.235174]
[1725549385222,0.000814,56673.0,56672.0,0.882267]
[1725549385439,0.000814,56673.0,56672.0,1.235174]
[1725549386290,0.000814,56673.0,56672.0,1.530474]
[1725549386502,0.000814,56673.0,56672.0,1.883381]
[1725549387599,0.000814,56673.0,56672.0,0.882267]
[1725549387844,0.000814,56673.0,56672.0,1.235174]
[1725549388923,0.000814,56673.0,56672.0,1.588081]
[1725549389345,0.000814,56673.0,56672.0,1.235174]
[1725549389567,0.000814,56673.0,56672.0,1.588081]
[1725549390039,0.000814,56673.0,56672.0,1.235174]
[1725549393033,0.000814,56673.0,56672.0,0.52936]
[1725549393464,0.000814,56673.0,56672.0,0.882267]
[1725549393686,0.000814,56673.0,56672.0,0.176453]
[1725549393891,0.000814,56673.0,56668.0,0.352927]
[1725549394101,0.177265,56673.0,56668.0,0.352927]
[1725549394301,0.177265,56673.0,56665.0,0.001628]
[1725549394302,0.176464,56669.0,56665.0,0.001628]
[1725549394513,0.000814,56673.0,56665.0,0.001628]
[1725549394514,0.177265,56673.0,56665.0,0.001628]
[1725549394744,0.000814,56673.0,56665.0,0.001628]
[1725549395010,0.000814,56673.0,56669.0,0.176461]
[1725549395011,0.176453,56673.0,56669.0,0.176461]
[1725549395219,0.176453,56673.0,56665.0,0.001628]
[1725549395220,0.176454,56672.0,56667.0,0.176467]
[1725549395442,0.176454,56672.0,56668.0,0.176465]
[1725549395859,0.176451,56673.0,56667.0,0.352933]
[1725549396085,0.4806,56680.0,56677.0,0.176437]
[1725549396380,0.176436,56678.0,56673.0,0.352895]
[1725549396624,0.4806,56680.0,56676.0,0.176441]
[1725549396855,0.65703,56680.0,56677.0,0.176437]
[1725549397055,0.46613,56680.0,56677.0,0.176437]
[1725549397493,0.46613,56680.0,56675.0,0.529329]
[1725549397727,0.543632,56685.0,56671.0,0.1982]
[1725549397728,0.176417,56684.0,56680.0,0.176427]
[1725549397946,0.806232,56685.0,56671.0,0.1982]
[1725549397947,0.176422,56683.0,56677.0,0.352871]
[1725549398189,0.176422,56683.0,56671.0,0.1982]
[1725549398190,0.176403,56689.0,56683.0,0.352838]
[1725549398388,0.2902,56689.0,56686.0,0.176409]
[1725549398602,0.2902,56689.0,56687.0,0.176406]
[1725549398844,0.2902,56689.0,56685.0,0.352826]
[1725549398845,0.2902,56689.0,56686.0,0.176409]
[1725549399058,0.55965239,56689.0,56664.0,0.01]
[1725549399267,0.352824,56686.0,56664.0,0.03]
[1725549399479,0.176414,56685.0,56681.0,0.176423]
[1725549399680,0.176417,56684.0,56681.0,0.176423]
[1725549399883,0.352808,56688.0,56680.0,0.176428]
[1725549400112,0.176415,56685.0,56681.0,0.176425]
[1725549400767,0.55965239,56689.0,56676.0,0.35288]
[1725549400975,0.55965239,56689.0,56688.0,0.176404]
[1725549400976,0.2902,56689.0,56688.0,0.176404]
[1725549401191,0.2723,56693.0,56688.0,0.176403]
[1725549401433,0.352794,56691.0,56682.0,0.352844]
[1725549401647,0.176406,56688.0,56682.0,0.352844]
[1725549401852,0.176406,56688.0,56684.0,0.176415]
[1725549402068,0.40850304,56689.0,56685.0,0.176413]
[1725549402286,0.40850304,56689.0,56686.0,0.17641]
[1725549402498,0.352812,56688.0,56679.0,0.352861]
[1725549402865,0.352812,56688.0,56683.0,0.176418]
[1725549402866,0.176411,56686.0,56683.0,0.176418]
[1725549403078,0.176411,56686.0,56682.0,0.176421]
[1725549403293,0.176411,56686.0,56670.0,0.2776]
[1725549403298,0.58492197,56688.0,56670.0,0.2776]
[1725549403528,0.2679,56683.0,56673.0,0.352896]
[1725549403771,0.2679,56683.0,56676.0,0.17644]
[1725549403772,0.17643,56680.0,56676.0,0.17644]
[1725549404059,0.176432,56679.0,56676.0,0.17644]
[1725549404297,0.352847,56682.0,56677.0,0.176435]
[1725549404298,0.529272,56682.0,56677.0,0.176435]
[1725549404410,0.20408451,56681.0,56678.0,0.176434]
[1725549404853,0.176429,56680.0,56675.0,0.352884]
[1725549405058,0.352847,56682.0,56675.0,0.352884]
[1725549405059,0.176426,56681.0,56677.0,0.175935]
[1725549405263,0.2679,56683.0,56676.0,0.352882]
[1725549405480,0.23210997,56688.0,56676.0,0.352882]
[1725549405481,0.64368652,56694.0,56678.0,0.2898]
[1725549405716,0.37788652,56694.0,56691.0,0.352784]
[1725549405945,0.37788652,56694.0,56693.0,1.234719]
[1725549406371,0.37788652,56694.0,56693.0,1.587496]
[1725549406631,0.37788652,56694.0,56693.0,1.777196]
[1725549406847,0.37788652,56694.0,56693.0,1.800196]
[1725549407088,0.37788652,56694.0,56693.0,2.70578396]
[1725549407317,0.37788652,56694.0,56693.0,2.72578396]
[1725549407533,0.37788652,56694.0,56693.0,2.74205248]
[1725549408238,0.37788652,56694.0,56693.0,3.01132001]
[1725549408452,0.000814,56704.0,56703.0,1.587217]
[1725549408658,0.189714,56704.0,56703.0,2.060517]
[1725549408879,0.189714,56704.0,56703.0,1.730802]
[1725549410253,0.189714,56704.0,56703.0,1.697802]
[1725549410524,0.189714,56704.0,56703.0,1.147587]
[1725549410738,0.189714,56704.0,56703.0,1.500302]
[1725549411608,0.189714,56704.0,56703.0,1.853017]
[1725549411879,0.189714,56704.0,56703.0,1.533302]
[1725549412089,0.189714,56704.0,56703.0,1.633302]
[1725549412307,0.189714,56704.0,56703.0,2.16152796]
[1725549412753,0.189714,56704.0,56703.0,2.16352796]
[1725549412976,0.189714,56704.0,56703.0,2.36252796]
[1725549413207,0.189714,56704.0,56703.0,2.37727762]
[1725549414280,0.189714,56704.0,56703.0,2.36727762]
[1725549414709,0.189714,56704.0,56703.0,2.35052796]
[1725549414922,0.189714,56704.0,56703.0,2.185017]
[1725549416197,0.189714,56704.0,56703.0,2.152017]
[1725549416410,0.189714,56704.0,56703.0,1.334502]
[1725549417478,0.189714,56704.0,56703.0,1.40519]
[1725549417707,0.189714,56704.0,56703.0,1.41519]
[1725549418158,0.189714,56704.0,56703.0,1.767905]
[1725549418362,0.189714,56704.0,56703.0,2.23061596]
[1725549418576,0.189714,56704.0,56703.0,2.23261596]
[1725549418993,0.189714,56704.0,56703.0,2.23061596]
[1725549419205,0.189714,56704.0,56703.0,2.25361596]
[1725549419448,0.189714,56704.0,56703.0,2.22061596]
[1725549419679,0.189714,56704.0,56703.0,2.23061596]
[1725549420510,0.189714,56704.0,56703.0,2.44801596]
[1725549420766,0.189714,56704.0,56703.0,2.82273096]
[1725549420986,0.013359,56704.0,56703.0,2.82273096]
[1725549423052,0.013359,56704.0,56703.0,2.44501596]
[1725549423536,0.013359,56704.0,56703.0,2.79773096]
[1725549423756,0.00081,56707.0,56706.0,0.75831553]
[1725549423985,0.00081,56707.0,56706.0,2.09191449]
[1725549424207,0.00081,56707.0,56706.0,2.46761049]
[1725549424440,0.00081,56707.0,56706.0,2.82030649]
[1725549424901,0.00081,56707.0,56706.0,2.46561049]
[1725549425133,0.00081,56707.0,56706.0,2.19634296]
[1725549425360,0.00081,56707.0,56706.0,2.46561049]
[1725549426758,0.00081,56707.0,56706.0,2.81830649]
[1725549426975,0.00082,56709.0,56708.0,0.03]
[1725549426976,1e-06,56709.0,56708.0,0.03]
[1725549427224,1e-06,56709.0,56708.0,1.82110941]
[1725549427471,1e-06,56709.0,56708.0,2.73056696]
[1725549428422,1e-06,56709.0,56708.0,2.73256696]
[1725549429310,1e-06,56709.0,56708.0,2.74941182]
[1725549429777,1e-06,56709.0,56708.0,3.10209482]
[1725549430216,1e-06,56709.0,56708.0,3.33377508]
[1725549430937,0.00081,56730.0,56729.0,1.586488]
[1725549432525,0.00081,56730.0,56729.0,1.233935]
[1725549433933,0.00081,56730.0,56729.0,1.586488]
[1725549434601,0.00081,56730.0,56729.0,2.68695196]
[1725549435031,0.00081,56730.0,56729.0,2.70995196]
[1725549435253,0.00081,56730.0,56729.0,2.74626855]
[1725549435715,0.00081,56730.0,56729.0,2.74826855]
[1725549435938,0.00081,56730.0,56729.0,2.74626855]
[1725549436437,0.00081,56730.0,56729.0,1.686488]
[1725549436664,0.00081,56730.0,56729.0,1.333935]
[1725549438126,0.00081,56730.0,56729.0,0.528829]
[1725549438371,0.00081,56730.0,56729.0,0.881382]
[1725549438820,0.00081,56730.0,56729.0,0.528829]
[1725549439262,0.00081,56730.0,56729.0,0.881382]
[1725549439504,0.00081,56730.0,56729.0,0.528829]
[1725549439725,0.00081,56730.0,56726.0,0.35257]
[1725549439962,0.2818,56729.0,56727.0,0.176282]
[1725549440192,0.2818,56729.0,56718.0,0.352618]
[1725549440419,0.2818,56729.0,56719.0,0.352611]
[1725549440643,0.17628,56728.0,56724.0,0.176291]
[1725549440870,0.17628,56728.0,56708.0,0.85526326]
[1725549440871,0.352589,56724.0,56715.0,0.352635]
[1725549441098,0.176305,56720.0,56716.0,0.176316]
[1725549441452,0.176305,56720.0,56704.0,0.476]
[1725549441453,0.176315,56717.0,56709.0,0.352673]
[1725549441664,0.176315,56717.0,56704.0,0.476]
[1725549441665,0.372118,56716.0,56711.0,0.17633]
[1725549441883,0.372118,56716.0,56710.0,0.35267]
[1725549441884,0.1958,56716.0,56712.0,0.176328]
[1725549442096,0.372117,56716.0,56710.0,0.35267]
[1725549442333,0.372117,56716.0,56711.0,0.17633]
[1725549442836,0.1958,56716.0,56708.0,0.352683]
[1725549443058,0.176323,56714.0,56710.0,0.176333]
[1725549443277,0.1958,56716.0,56712.0,0.176327]
[1725549443278,0.2787,56713.0,56712.0,0.176327]
[1725549443495,0.2787,56713.0,56712.0,0.528986]
[1725549443716,0.1958,56716.0,56715.0,0.52896]
[1725549443960,0.196614,56716.0,56715.0,0.52896]
[1725549444411,0.196614,56716.0,56715.0,0.17632]
[1725549445337,0.196614,56716.0,56704.0,0.476]
[1725549445338,0.2722,56715.0,56708.0,0.17634]
[1725549445568,0.2722,56715.0,56704.0,0.476]
[1725549445569,0.2722,56715.0,56707.0,0.352689]
[1725549445801,0.2722,56715.0,56711.0,0.176331]
[1725549446012,0.44852,56715.0,56711.0,0.176331]
[1725549446463,0.44852,56715.0,56709.0,0.352675]
[1725549446464,0.176323,56714.0,56709.0,0.352675]
[1725549446695,0.2722,56715.0,56713.0,0.176325]
[1725549446942,0.2722,56715.0,56713.0,0.176324]
[1725549447167,0.2722,56715.0,56704.0,0.476]
[1725549447168,0.2722,56715.0,56714.0,0.176323]
[1725549447679,0.2722,56715.0,56714.0,0.881615]
[1725549447919,0.2722,56715.0,56714.0,0.528969]
[1725549448127,0.01042532,56715.0,56714.0,0.528969]
[1725549448259,0.01042532,56715.0,56714.0,0.176323]
[1725549448489,0.01042532,56715.0,56714.0,0.528969]
[1725549448691,0.01042532,56715.0,56714.0,0.176323]
[1725549449060,0.01042532,56715.0,56704.0,0.828707]
[1725549449061,0.01042532,56715.0,56710.0,0.176333]
[1725549449130,0.01042532,56715.0,56708.0,0.17634]
[1725549449131,0.176332,56712.0,56708.0,0.17634]
[1725549449342,0.176333,56711.0,56707.0,0.176344]
[1725549449540,0.176329,56713.0,56707.0,0.352687]
[1725549449757,0.176323,56714.0,56710.0,0.176334]
[1725549449952,0.176333,56711.0,56707.0,0.176343]
[1725549450755,0.176333,56711.0,56705.0,0.352697]
[1725549450955,0.17633,56712.0,56708.0,0.17634]
[1725549451160,0.23175282,56714.0,56708.0,0.352683]
[1725549451370,0.01042532,56715.0,56711.0,0.176329]
[1725549451574,0.36307032,56715.0,56708.0,0.352683]
[1725549451791,0.36307032,56715.0,56709.0,0.176338]
[1725549452025,0.176325,56714.0,56710.0,0.176335]
[1725549452224,0.352646,56714.0,56708.0,0.352683]
[1725549452570,0.36307032,56715.0,56708.0,0.352683]
[1725549452571,0.18674532,56715.0,56711.0,0.176331]
[1725549452818,0.18674532,56715.0,56712.0,0.176328]
[1725549453224,0.18674532,56715.0,56710.0,0.35267]
[1725549453225,0.24217814,56715.0,56703.0,0.001628]
[1725549453441,0.176336,56710.0,56707.0,0.176343]
[1725549453673,0.352662,56712.0,56707.0,0.176343]
[1725549453885,0.24217814,56715.0,56703.0,0.001628]
[1725549453886,0.176329,56713.0,56703.0,0.001628]
[1725549454174,0.196614,56716.0,56715.0,0.17632]
[1725549454401,0.196614,56716.0,56715.0,0.8816]
[1725549454859,0.000814,56716.0,56715.0,0.8816]
[1725549455329,0.000814,56716.0,56715.0,1.23424]
[1725549455802,0.000814,56716.0,56715.0,1.52714]
[1725549456762,0.000814,56716.0,56715.0,2.38689096]
[1725549457193,0.000814,56716.0,56715.0,2.73953096]
[1725549457432,0.00082,56731.0,56729.0,1.586488]
[1725549457660,0.00082,56731.0,56729.0,2.38545178]
[1725549457940,0.00082,56731.0,56729.0,2.76100478]
[1725549458416,0.00082,56731.0,56729.0,2.95370478]
[1725549458658,0.00082,56731.0,56729.0,2.97370478]
[1725549459109,0.00082,56731.0,56729.0,2.99004843]
[1725549459339,0.00082,56731.0,56729.0,2.99204843]
[1725549459579,0.00082,56731.0,56729.0,2.99004843]
[1725549459801,0.00082,56731.0,56729.0,2.63749543]
[1725549460282,0.00082,56731.0,56729.0,1.808335]
[1725549460527,0.00082,56731.0,56729.0,0.528829]
[1725549460735,0.00082,56731.0,56729.0,0.176276]
[1725549460922,0.00082,56731.0,56724.0,0.2784]
[1725549460923,0.177084,56730.0,56726.0,0.176284]
[1725549461135,0.177084,56730.0,56725.0,0.352575]
[1725549461136,0.00081,56730.0,56725.0,0.352575]
[1725549461372,0.00081,56730.0,56728.0,0.176278]
[1725549461625,0.00081,56730.0,56729.0,0.528829]
[1725549461848,0.00081,56730.0,56729.0,0.881382]
[1725549462064,0.00081,56730.0,56729.0,0.176276]
[1725549462301,0.00081,56730.0,56729.0,0.528829]
[1725549462533,0.00081,56730.0,56729.0,0.881382]
[1725549462749,0.00081,56730.0,56729.0,0.528829]
[1725549462974,0.00081,56730.0,56729.0,0.176276]
[1725549463208,0.00081,56730.0,56728.0,0.176277]
[1725549463454,0.00081,56730.0,56724.0,0.52887]
[1725549463455,0.177086,56730.0,56724.0,0.52887]
[1725549463700,0.00081,56730.0,56726.0,0.176284]
[1725549463917,0.00081,56730.0,56715.0,0.2884]
[1725549463918,0.23175282,56726.0,56721.0,0.176298]
[1725549464153,0.17629,56725.0,56720.0,0.176303]
[1725549464409,0.23175282,56726.0,56716.0,0.176314]
[1725549464644,0.23175282,56726.0,56707.0,0.001626]
[1725549464645,0.17631,56719.0,56714.0,0.176321]
[1725549464868,0.176303,56721.0,56716.0,0.176315]
[1725549465090,0.176303,56721.0,56717.0,0.176313]
[1725549465324,0.352598,56722.0,56712.0,0.352658]
[1725549465585,0.176329,56712.0,56708.0,0.17634]
[1725549465810,0.176329,56712.0,56707.0,0.001626]
[1725549465811,0.176318,56716.0,56707.0,0.001626]
[1725549466041,0.23175282,56718.0,56711.0,0.176331]
[1725549466042,0.176321,56715.0,56711.0,0.176331]
[1725549466289,0.23175282,56718.0,56707.0,0.001626]
[1725549466528,0.176336,56710.0,56707.0,0.001626]
[1725549466785,0.23175282,56714.0,56708.0,0.176341]
[1725549466786,0.352653,56713.0,56708.0,0.176341]
[1725549467006,0.528982,56713.0,56708.0,0.176341]
[1725549467240,0.17632,56715.0,56708.0,0.352681]
[1725549467455,0.176323,56714.0,56710.0,0.176333]
[1725549467676,0.176321,56715.0,56711.0,0.176331]
[1725549467884,0.2709,56717.0,56712.0,0.176328]
[1725549467885,0.447217,56717.0,56712.0,0.176328]
[1725549468163,0.176317,56716.0,56712.0,0.176328]
[1725549470148,0.50455282,56722.0,56719.0,0.176304]
[1725549470373,0.68085082,56722.0,56719.0,0.176304]
[1725549470595,0.176315,56717.0,56705.0,0.281]
[1725549470858,0.176321,56715.0,56711.0,0.176331]
[1725549471125,0.352632,56717.0,56710.0,0.352667]
[1725549471126,0.176314,56717.0,56710.0,0.352667]
[1725549471340,0.176327,56713.0,56708.0,0.352681]
[1725549471521,0.176323,56714.0,56710.0,0.176334]
[1725549471797,0.02764278,56716.0,56708.0,0.352681]
[1725549472004,0.20396078,56716.0,56711.0,0.176329]
[1725549472234,0.02764278,56716.0,56708.0,0.352681]
[1725549472456,0.02764278,56716.0,56714.0,0.176322]
[1725549472672,0.02764278,56716.0,56709.0,0.00352651]
[1725549472673,0.02764278,56716.0,56715.0,0.17632]
[1725549472910,0.02764278,56716.0,56715.0,0.52896]
[1725549473165,0.176309,56719.0,56715.0,0.176318]
[1725549473490,0.176319,56716.0,56702.0,0.281]
[1725549473593,0.25939314,56717.0,56713.0,0.176325]
[1725549473800,0.25939314,56717.0,56714.0,0.176323]
[1725549474258,0.02764032,56717.0,56716.0,0.528951]
[1725549474487,0.02764032,56717.0,56716.0,0.881585]
[1725549474918,0.1996,56723.0,56720.0,0.176302]
[1725549475126,0.176311,56718.0,56714.0,0.176322]
[1725549475360,0.2796,56715.0,56705.0,0.352702]
[1725549475572,0.2796,56715.0,56711.0,0.352662]
[1725549475795,0.2796,56715.0,56698.0,0.1908]
[1725549475796,0.2796,56715.0,56703.0,0.354342]
[1725549476009,0.176332,56712.0,56703.0,0.354342]
[1725549476223,0.53807478,56715.0,56709.0,0.176336]
[1725549476432,0.176327,56713.0,56710.0,0.176335]
[1725549476793,0.18543278,56715.0,56708.0,0.352681]
[1725549476794,0.14315899,56715.0,56708.0,0.352681]
[1725549477007,0.49580499,56715.0,56709.0,0.352672]
[1725549477248,0.176323,56714.0,56711.0,0.176331]
[1725549477776,0.176323,56714.0,56710.0,0.176334]
[1725549477986,0.14315899,56715.0,56709.0,0.352672]
[1725549478304,0.14315899,56715.0,56708.0,0.35268]
[1725549478305,0.49580099,56715.0,56708.0,0.35268]
[1725549478431,0.352634,56716.0,56710.0,0.176334]
[1725549478652,0.176321,56715.0,56711.0,0.176331]
[1725549478780,0.58438382,56717.0,56709.0,0.352677]
[1725549478984,0.176308,56719.0,56710.0,0.352667]
[1725549479186,0.176312,56718.0,56707.0,0.001626]
[1725549479394,0.35261,56720.0,56707.0,0.001626]
[1725549479395,0.176314,56717.0,56714.0,0.176322]
[1725549479630,0.35261,56720.0,56712.0,0.352656]
[1725549479866,0.000814,56718.0,56716.0,0.176315]
[1725549480546,0.000814,56718.0,56717.0,0.52894]
[1725549480759,0.000814,56718.0,56717.0,0.176313]
[1725549480980,0.000814,56718.0,56713.0,0.352647]
[1725549481238,0.49695282,56717.0,56707.0,0.001626]
[1725549481476,0.352659,56712.0,56707.0,0.17797]
[1725549481716,0.58440482,56713.0,56708.0,0.176339]
[1725549481945,0.529024,56708.0,56707.0,0.001626]
[1725549482184,0.2723,56708.0,56707.0,0.001626]
[1725549482408,0.448641,56708.0,56707.0,0.001626]
[1725549482632,0.801324,56708.0,56707.0,0.001626]
[1725549482857,2.163195,56708.0,56707.0,0.001626]
[1725549483084,2.186195,56708.0,56707.0,0.001626]
[1725549483342,2.638878,56708.0,56707.0,0.001626]
[1725549483581,2.8729296,56708.0,56707.0,0.001626]
[1725549483796,2.5478969,56708.0,56707.0,0.001626]
[1725549484025,2.5202466,56708.0,56707.0,0.001626]
[1725549484243,2.2436246,56708.0,56707.0,0.001626]
[1725549484711,2.23682972,56708.0,56707.0,0.001626]
[1725549485808,2.26447944,56708.0,56707.0,0.001626]
[1725549486310,2.28747944,56708.0,56707.0,0.001626]
[1725549486991,2.07669644,56708.0,56707.0,0.001626]
[1725549487229,2.23980644,56708.0,56707.0,0.001626]
[1725549487457,0.30399072,56708.0,56707.0,0.001626]
[1725549487672,0.20399072,56708.0,56707.0,0.001626]
[1725549487954,0.55667372,56708.0,56707.0,0.001626]
[1725549488132,1.14140832,56708.0,56707.0,0.001626]
[1725549488361,1.1137586,56708.0,56707.0,0.001626]
[1725549488600,1.7598416,56708.0,56707.0,0.001626]
[1725549489082,1.8598416,56708.0,56707.0,0.001626]
[1725549489308,2.2355246,56708.0,56707.0,0.001626]
[1725549489543,4.3662236,56708.0,56707.0,0.001626]
[1725549489768,4.5633236,56708.0,56707.0,0.001626]
[1725549490002,4.59097417,56708.0,56707.0,0.001626]
[1725549490476,4.60997436,56708.0,56707.0,0.001626]
[1725549490712,4.96265736,56708.0,56707.0,0.001626]
[1725549490953,4.99265736,56708.0,56707.0,0.001626]
[1725549491199,4.99265736,56708.0,56707.0,1.1e-07]
[1725549491440,2.50927536,56708.0,56707.0,1.1e-07]
[1725549492153,2.50927536,56708.0,56703.0,0.001628]
[1725549492154,2.080086,56704.0,56703.0,0.001628]
[1725549492380,4.3103426,56704.0,56703.0,0.001628]
[1725549493337,4.6630506,56704.0,56703.0,0.001628]
[1725549495409,4.1762786,56704.0,56703.0,0.001628]
[1725549495681,3.4648486,56704.0,56703.0,0.001628]
[1725549496348,3.4448486,56704.0,56703.0,0.001628]
[1725549496583,2.4351486,56704.0,56703.0,0.001628]
[1725549496776,2.4451486,56704.0,56703.0,0.001628]
[1725549497263,2.4351486,56704.0,56703.0,0.001628]
[1725549497490,2.4451486,56704.0,56703.0,0.001628]
[1725549498412,1.7584296,56704.0,56703.0,0.001628]
[1725549498704,0.5084056,56704.0,56703.0,0.001628]
[1725549499060,1.2138216,56704.0,56703.0,0.001628]